lending/lending_fUSD_20240807
["ID","MTS","AMOUNT","RATE_DAILY","PERIOD"]
[334383000,1723015840637,-2947.78501053,0.00010899,2]
[334383001,1723015840647,-2947.78501053,0.00010899,2]
[334383002,1723015840662,-2947.78501053,0.00010899,2]
[334383003,1723015840671,-99935.4874,0.000109,2]
[334383004,1723015840680,-286.87,0.000109,2]
[334383006,1723015840690,-566.83,0.000109,2]
[334383008,1723015840701,-834.45,0.000109,2]
[334383009,1723015840710,-173.56738931,0.000109,2]
[334383010,1723015840719,-1000.0,0.000109,2]
[334383011,1723015840729,-561.62741965,0.000109,2]
[334383012,1723015840740,-561.6274196,0.000109,2]
[334383013,1723015840749,-561.6274196,0.000109,2]
[334383014,1723015840758,-561.6274196,0.000109,2]
[334383015,1723015840767,-2947.78501053,0.000109,2]
[334383016,1723015840776,-561.6274196,0.000109,2]
[334383017,1723015840786,-561.6274196,0.000109,2]
[334383018,1723015840795,-561.6274196,0.000109,2]
[334383019,1723015840805,-561.6274196,0.000109,2]
[334383020,1723015840814,-1267.75227152,0.000109,2]
[334383021,1723015840825,-151.66,0.000109,2]
[334383022,1723015840834,-151.66,0.000109,2]
[334383023,1723015840844,-151.66,0.000109,2]
[334383024,1723015840853,-151.66,0.000109,2]
[334383025,1723015840863,-11500.89430786,0.000109,2]
[334383026,1723015840872,-162.97553613,0.000109,2]
[334383027,1723015840882,-162.97553612,0.00010933,2]
[334383028,1723015840893,-496.336872,0.00010934,2]
[334383029,1723015840902,-279.125715,0.00010934,2]
[334383030,1723015840912,-13185.361734,0.00010934,2]
[334383031,1723015840922,-24227.394751,0.00010934,2]
[334383032,1723015840931,-168.309179,0.00010934,2]
[334383033,1723015840941,-4690.208706,0.00010934,2]
[334383034,1723015840951,-828.145231,0.00010934,2]
[334383035,1723015840961,-418.102079,0.00010934,2]
[334383036,1723015840971,-21734.242707,0.00010934,2]
[334383037,1723015840981,-21416.955277,0.00010934,2]
[334383038,1723015840991,-500.0,0.00010958,2]
[334383039,1723015841000,-500.0,0.00010958,2]
[334383040,1723015841010,-200.0,0.00010958,2]
[334383041,1723015841019,-500.0,0.00010958,2]
[334383042,1723015841029,-500.0,0.00010958,2]
[334383043,1723015841038,-500.0,0.00010958,2]
[334383044,1723015841048,-500.0,0.00010958,2]
[334383045,1723015841058,-500.0,0.00010958,2]
[334383046,1723015841067,-500.0,0.00010958,2]
[334383047,1723015841076,-300.0,0.00010958,2]
[334383048,1723015841086,-500.0,0.00010958,2]
[334383049,1723015841096,-500.0,0.00010958,2]
[334383050,1723015841105,-500.0,0.00010958,2]
[334383051,1723015841115,-500.0,0.00010958,2]
[334383052,1723015841125,-500.0,0.00010958,2]
[334383053,1723015841134,-478.03555459,0.00010958,2]
[334383054,1723015841144,-500.0,0.00010958,2]
[334383055,1723015841153,-500.0,0.00010958,2]
[334383056,1723015841163,-409.51080245,0.00010958,2]
[334383057,1723015841174,-500.0,0.00010958,2]
[334383058,1723015841183,-500.0,0.00010958,2]
[334383059,1723015841193,-500.0,0.00010958,2]
[334383060,1723015841204,-500.0,0.00010958,2]
[334383061,1723015841214,-500.0,0.00010958,2]
[334383062,1723015841224,-500.0,0.00010958,2]
[334383063,1723015841233,-520.95350856,0.00010958,2]
[334383064,1723015841242,-500.0,0.00010958,2]
[334383065,1723015841252,-500.0,0.00010958,2]
[334383066,1723015841261,-500.0,0.00010958,2]
[334383067,1723015841270,-500.0,0.00010958,2]
[334383068,1723015841280,-500.0,0.00010958,2]
[334383069,1723015841289,-500.0,0.00010958,2]
[334383070,1723015841298,-500.0,0.00010958,2]
[334383071,1723015841307,-500.0,0.00010958,2]
[334383072,1723015841317,-500.0,0.00010958,2]
[334383073,1723015841326,-500.0,0.00010958,2]
[334383074,1723015841335,-500.0,0.00010958,2]
[334383075,1723015841345,-500.0,0.00010958,2]
[334383076,1723015841354,-155.1337736,0.00010958,2]
[334383077,1723015841364,-197.21456743,0.00010958,2]
[334383078,1723015841373,-500.0,0.00010958,2]
[334383079,1723015841382,-500.0,0.00010958,2]
[334383080,1723015841391,-556.31254206,0.00010958,2]
[334383081,1723015841401,-308.92795265,0.00010958,2]
[334383082,1723015841411,-522.54034275,0.00010958,2]
[334383083,1723015841421,-500.0,0.00010958,2]
[334383084,1723015841430,-500.0,0.00010958,2]
[334383085,1723015841440,-392.04452683,0.00010958,2]
[334383086,1723015841452,-500.0,0.00010958,2]
[334383087,1723015841462,-500.0,0.00010958,2]
[334383088,1723015841471,-500.0,0.00010958,2]
[334383089,1723015841480,-500.0,0.00010958,2]
[334383090,1723015841490,-500.0,0.00010958,2]
[334383091,1723015841499,-500.0,0.00010958,2]
[334383092,1723015841509,-267.72342249,0.00010958,2]
[334383093,1723015841519,-500.0,0.00010958,2]
[334383094,1723015841529,-500.0,0.00010958,2]
[334383095,1723015841540,-270.43878935,0.00010958,2]
[334383096,1723015841550,-500.0,0.00010958,2]
[334383097,1723015841559,-500.0,0.00010958,2]
[334383098,1723015841568,-500.0,0.00010958,2]
[334383099,1723015841577,-500.0,0.00010958,2]
[334383100,1723015841586,-500.0,0.00010958,2]
[334383101,1723015841595,-500.0,0.00010958,2]
[334383102,1723015841604,-500.0,0.00010958,2]
[334383103,1723015841613,-500.0,0.00010958,2]
[334383104,1723015841622,-500.0,0.00010958,2]
[334383105,1723015841632,-567.09535087,0.00010958,2]
[334383106,1723015841642,-500.0,0.00010958,2]
[334383107,1723015841654,-500.0,0.00010958,2]
[334383108,1723015841663,-500.0,0.00010958,2]
[334383109,1723015841672,-219.58546066,0.00010958,2]
[334383110,1723015841682,-500.0,0.00010958,2]
[334383111,1723015841691,-500.0,0.00010958,2]
[334383112,1723015841700,-500.0,0.00010958,2]
[334383113,1723015841710,-625.0,0.00010958,2]
[334383114,1723015841719,-500.0,0.00010958,2]
[334383115,1723015841731,-625.0,0.00010958,2]
[334383116,1723015841741,-500.0,0.00010958,2]
[334383117,1723015841750,-625.0,0.00010958,2]
[334383118,1723015841759,-540.56149816,0.00010958,2]
[334383119,1723015841769,-500.0,0.00010958,2]
[334383120,1723015841779,-500.0,0.00010958,2]
[334383121,1723015841788,-500.0,0.00010958,2]
[334383122,1723015841797,-500.0,0.00010958,2]
[334383123,1723015841806,-500.0,0.00010958,2]
[334383124,1723015841816,-500.0,0.00010958,2]
[334383125,1723015841826,-500.0,0.00010958,2]
[334383126,1723015841835,-534.97917512,0.00010958,2]
[334383127,1723015841844,-1000.0,0.00010959,2]
[334383128,1723015841853,-1000.0,0.00010959,2]
[334383129,1723015841863,-1000.0,0.00010959,2]
[334383130,1723015841872,-1000.0,0.00010959,2]
[334383131,1723015841881,-1000.0,0.00010959,2]
[334383132,1723015841891,-1000.0,0.00010959,2]
[334383133,1723015841900,-1000.0,0.00010959,2]
[334383134,1723015841909,-1000.0,0.00010959,2]
[334383135,1723015841918,-1000.0,0.00010959,2]
[334383136,1723015841928,-1000.0,0.00010959,2]
[334383137,1723015841937,-1000.0,0.00010959,2]
[334383138,1723015841946,-1000.0,0.00010959,2]
[334383139,1723015841956,-1000.0,0.00010959,2]
[334383140,1723015841966,-1000.0,0.00010959,2]
[334383141,1723015841975,-1000.0,0.00010959,2]
[334383142,1723015841984,-1000.0,0.00010959,2]
[334383143,1723015841993,-1000.0,0.00010959,2]
[334383144,1723015842003,-1000.0,0.00010959,2]
[334383145,1723015842012,-1000.0,0.00010959,2]
[334383146,1723015842021,-1000.0,0.00010959,2]
[334383147,1723015842030,-1000.0,0.00010959,2]
[334383148,1723015842040,-653.0,0.00010959,2]
[334383149,1723015842049,-179.92,0.00010959,2]
[334383150,1723015842058,-11193.81,0.00010959,2]
[334383151,1723015842067,-2227.53,0.00010959,2]
[334383152,1723015842077,-250.0,0.00010959,2]
[334383153,1723015842086,-2000.0,0.00010959,2]
[334383154,1723015842094,-150.0,0.00010959,2]
[334383155,1723015842103,-232.22086172,0.00010986,2]
[334383156,1723015842113,-500.0,0.00010986,2]
[334383157,1723015842122,-97535.0,0.00010986,2]
[334383158,1723015842131,-781.0,0.00010986,2]
[334383159,1723015842141,-579.0,0.00010986,2]
[334383160,1723015842149,-3335.0,0.00010986,2]
[334383161,1723015842159,-151.66,0.00010988,2]
[334383162,1723015842168,-4510.80117221,0.0001099,2]
[334383163,1723015842463,-151.66,0.0001099,2]
[334383164,1723015842472,-151.66,0.0001099,2]
[334383165,1723015842482,-151.66,0.0001099,2]
[334383166,1723015842492,-151.66,0.0001099,2]
[334383167,1723015842501,-151.66,0.0001099,2]
[334383168,1723015842511,-151.66,0.0001099,2]
[334383169,1723015842521,-151.66,0.0001099,2]
[334383170,1723015842531,-151.66,0.0001099,2]
[334383171,1723015842540,-151.66,0.0001099,2]
[334383172,1723015842550,-151.66,0.0001099,2]
[334383173,1723015842560,-151.66,0.0001099,2]
[334383174,1723015842570,-151.66,0.0001099,2]
[334383175,1723015842580,-151.66,0.0001099,2]
[334383176,1723015842589,-151.66,0.0001099,2]
[334383177,1723015842599,-151.66,0.0001099,2]
[334383178,1723015842608,-151.66,0.0001099,2]
[334383179,1723015842618,-810.0,0.00010996,2]
[334383180,1723015842627,-694.0,0.00010996,2]
[334383181,1723015842637,-446.0,0.00010996,2]
[334383182,1723015842646,-1344.0,0.00010996,2]
[334383183,1723015842661,-150.0,0.00010996,2]
[334383184,1723015842671,-551.0,0.00010996,2]
[334383185,1723015842680,-150.0,0.00010996,2]
[334383186,1723015842689,-1894.0,0.00010996,2]
[334383187,1723015842699,-3289.0,0.00010996,2]
[334383188,1723015842712,-150.0,0.00010996,2]
[334383190,1723015842722,-21743.0,0.00010996,2]
[334383192,1723015842732,-1671.0,0.00010996,2]
[334383194,1723015842741,-1204.0,0.00010996,2]
[334383196,1723015842751,-5130.0,0.00010996,2]
[334383198,1723015842760,-1256.0,0.00010996,2]
[334383200,1723015842769,-622.0,0.00010996,2]
[334383202,1723015842778,-1583.0,0.00010996,2]
[334383204,1723015842787,-1086.0,0.00010997,2]
[334383206,1723015842797,-625.0,0.00010997,2]
[334383208,1723015842806,-2250.08738479,0.00010997,2]
[334383209,1723015842815,-13924.5051137,0.00010998,2]
[334383210,1723015842825,-37595.3618447,0.00010998,2]
[334383211,1723015842834,-87143.3582684,0.00010998,2]
[334383212,1723015842844,-1302.86889251,0.00010999,2]
[334383213,1723015842853,-500.0,0.00010999,2]
[334383214,1723015842863,-500.0,0.00010999,2]
[334383215,1723015842872,-500.0,0.00010999,2]
[334383216,1723015842882,-500.0,0.00010999,2]
[334383217,1723015842892,-500.0,0.00010999,2]
[334383219,1723015842902,-500.0,0.00010999,2]
[334383220,1723015842912,-500.0,0.00010999,2]
[334383222,1723015842922,-1479.22,0.00010999,2]
[334383223,1723015842931,-625.0,0.00010999,2]
[334383224,1723015842941,-625.0,0.00010999,2]
[334383225,1723015842950,-625.0,0.00010999,2]
[334383226,1723015842960,-625.0,0.00010999,2]
[334383227,1723015842970,-625.0,0.00010999,2]
[334383228,1723015842979,-625.0,0.00010999,2]
[334383229,1723015842989,-625.0,0.00010999,2]
[334383230,1723015842999,-625.0,0.00010999,2]
[334383231,1723015843009,-625.0,0.00010999,2]
[334383232,1723015843018,-625.0,0.00010999,2]
[334383233,1723015843029,-625.0,0.00010999,2]
[334383234,1723015843039,-625.0,0.00010999,2]
[334383235,1723015843048,-625.0,0.00010999,2]
[334383236,1723015843058,-625.0,0.00010999,2]
[334383237,1723015843067,-625.0,0.00010999,2]
[334383238,1723015843076,-625.0,0.00010999,2]
[334383239,1723015843086,-625.0,0.00010999,2]
[334383240,1723015843095,-625.0,0.00010999,2]
[334383241,1723015843104,-625.0,0.00010999,2]
[334383242,1723015843113,-625.0,0.00010999,2]
[334383243,1723015843122,-500.0,0.00010999,2]
[334383244,1723015843131,-150.0,0.00010999,2]
[334383245,1723015843140,-79600.68796971,0.00011,2]
[334383246,1723015843150,-8732618.58591536,0.00011,2]
[334383247,1723015843197,-281576.61977177,0.00011,2]
[334383248,1723015843210,-214328.68483012,0.00011,2]
[334383249,1723015843235,-3733.35497294,0.00011,2]
[334383250,1723015843245,-4156.47168231,0.00011,2]
[334383251,1723015843396,-320.46117507,0.00010518,2]
[334383252,1723015843406,-424.03882493,0.00010996,2]
[334383253,1723015843417,-5413.96117507,0.00010996,2]
[334383254,1723015843427,-1170.26101613,0.00011,2]
[334383257,1723015843438,-1910.32444698,0.00011,2]
[334383259,1723015843455,-263.95605343,0.00011,2]
[334383260,1723015843467,-300.0,0.00011,2]
[334383261,1723015843478,-73325.23097673,0.00011,2]
[334383262,1723015843490,-302.0,0.00011,2]
[334383263,1723015843505,-572.21,0.00011,2]
[334383264,1723015843521,-3224.73762716,0.00011,2]
[334383265,1723015844002,-6279.49838837,0.00011,2]
[334383275,1723015847040,-320.46117507,0.00010645,2]
[334383276,1723015847050,-289.0,0.0001098,2]
[334383277,1723015847060,-790.6712257,0.00011,2]
[334383278,1723015847071,-3963.32370779,0.00011,2]
[334383279,1723015847103,-1040.33004849,0.00011,2]
[334383280,1723015847114,-21991.0564186,0.00011,2]
[334383281,1723015847167,-2192.36880359,0.00011,2]
[334383282,1723015847179,-1250.0945842,0.00011,2]
[334383283,1723015847190,-2218.84058109,0.00011,2]
[334383291,1723016156739,-1998.84301509,0.00011105,7]
[334383292,1723016162880,606.61,8.219e-05,2]
[334383293,1723016176176,-303.09063968,0.0001,5]
[334383294,1723016176210,-9208.00039505,0.00011,3]
[334383295,1723016358413,2744.82703094,0.00024657,30]
[334383296,1723016383975,200.0,9.197e-05,2]
[334383297,1723016584207,1000.0,0.00024658,30]
[334383298,1723016624919,30172.11287494,9.197e-05,2]
[334383299,1723016733328,245.18,9.521e-05,2]
[334383300,1723016752792,187.41,9.521e-05,2]
[334383301,1723016806849,1852.42,9.512e-05,2]
[334383302,1723016825250,250.0,9.542e-05,2]
[334383303,1723016901912,576.27,8.219e-05,2]
[334383304,1723016921145,-150.0,9.566e-05,2]
[334383305,1723016921175,-336.02,9.569e-05,2]
[334383306,1723016921204,-181.34243174,9.573e-05,2]
[334383307,1723016921232,-150.0,9.589e-05,2]
[334383308,1723016921262,-300.0,9.612e-05,2]
[334383309,1723016921289,-300.0,9.612e-05,2]
[334383310,1723016921322,-5731.62947017,9.613e-05,2]
[334383311,1723016921355,-7148.99190191,9.613e-05,2]
[334383312,1723016921391,-1359.58862792,9.613e-05,2]
[334383313,1723016921418,-1925.51932136,9.671e-05,2]
[334383332,1723017032085,-195.83067864,9.671e-05,2]
[334383333,1723017032095,-152.5,9.689e-05,2]
[334383334,1723017032106,-880.0,9.697e-05,2]
[334383335,1723017032117,-1523.89037386,0.0001,2]
[334383336,1723017032130,-26.10962614,0.0001,2]
[334383337,1723017032140,-165.96,0.00010135,2]
[334383338,1723017032149,-165.96,0.00010152,2]
[334383339,1723017032158,-165.96,0.00010169,2]
[334383340,1723017032167,-165.96,0.00010186,2]
[334383341,1723017032177,-300.0,0.00010369,2]
[334383342,1723017032185,-106.78813882,0.0001037,2]
[334383343,1723017032198,-1238.04,0.0001037,2]
[334383344,1723017032224,-573.12764263,0.0001037,2]
[334383345,1723017032235,-6033.12737315,0.0001037,2]
[334383346,1723017032250,-280.83854349,0.0001037,2]
[334383347,1723017032261,-397.92779334,0.0001037,2]
[334383348,1723017032272,-4869.87206032,0.0001037,2]
[334383349,1723017032284,-594.88705804,0.0001037,2]
[334383350,1723017032301,-1386.0,0.0001037,2]
[334383351,1723017032313,-957.70349732,0.0001037,2]
[334383352,1723017032323,-150.0,0.00010379,2]
[334383353,1723017032332,-2302.80057345,0.0001038,2]
[334383354,1723017032344,-535.511,0.0001038,2]
[334383355,1723017032355,-746.56164777,0.0001038,2]
[334383356,1723017032366,-984.09450233,0.0001038,2]
[334383357,1723017032378,-500.0,0.0001038,2]
[334383358,1723017032398,-3426.24761861,0.0001038,2]
[334383359,1723017032410,-38896.65805784,0.0001038,2]
[334383360,1723017032419,-380.0667,0.0001038,2]
[334383361,1723017032429,-7533.459,0.0001038,2]
[334383362,1723017032438,-263.90093,0.00010414,2]
[334383363,1723017032447,-576.27,0.00010459,2]
[334383365,1723017032457,-1385.01259367,0.000108,2]
[334383367,1723017032466,-11727.05082751,0.0001089,2]
[334383369,1723017032476,-150.0,0.0001089,2]
[334383371,1723017032485,-203.24103,0.0001089,2]
[334383373,1723017032495,-4084.18298632,0.00010899,2]
[334383375,1723017032505,-4084.18298624,0.00010899,2]
[334383377,1723017032514,-4084.18298624,0.00010899,2]
[334383379,1723017032524,-4084.18298624,0.00010899,2]
[334383381,1723017032533,-4084.18298624,0.00010899,2]
[334383383,1723017032542,-4084.18298624,0.00010899,2]
[334383385,1723017032551,-4084.18298624,0.00010899,2]
[334383387,1723017032560,-4084.18298624,0.00010899,2]
[334383389,1723017032569,-4084.18298624,0.00010899,2]
[334383391,1723017032578,-6216.3047,0.000109,2]
[334383393,1723017032587,-152.5,0.000109,2]
[334383395,1723017032596,-157.70955616,0.000109,2]
[334383397,1723017032605,-157.70955616,0.000109,2]
[334383399,1723017032613,-157.70955616,0.000109,2]
[334383401,1723017032623,-157.70955616,0.000109,2]
[334383403,1723017032632,-157.70955616,0.000109,2]
[334383406,1723017032641,-157.70955616,0.000109,2]
[334383409,1723017032650,-157.70955616,0.000109,2]
[334383411,1723017032659,-157.70955616,0.000109,2]
[334383414,1723017032669,-987.44865554,0.000109,2]
[334383415,1723017032678,-4084.18298624,0.000109,2]
[334383417,1723017032687,-268.24639746,0.000109,2]
[334383419,1723017032696,-880.0,0.00010909,2]
[334383420,1723017032705,-500.0,0.00010958,2]
[334383421,1723017032714,-500.0,0.00010958,2]
[334383423,1723017032723,-500.0,0.00010958,2]
[334383425,1723017032733,-500.0,0.00010958,2]
[334383427,1723017032742,-500.0,0.00010958,2]
[334383429,1723017032751,-228.74,0.00010958,2]
[334383431,1723017032760,-2000.0,0.00010959,2]
[334383433,1723017032769,-250.0,0.00010959,2]
[334383435,1723017032778,-500.0,0.00010989,2]
[334383436,1723017032788,-500.0,0.00010989,2]
[334383438,1723017032797,-625.0,0.00010989,2]
[334383440,1723017032806,-500.0,0.00010989,2]
[334383442,1723017032815,-500.0,0.00010989,2]
[334383444,1723017032825,-500.0,0.00010989,2]
[334383446,1723017032834,-500.0,0.00010989,2]
[334383448,1723017032843,-200.0,0.00010989,2]
[334383450,1723017032852,-500.0,0.00010989,2]
[334383452,1723017032861,-500.0,0.00010989,2]
[334383454,1723017032870,-420.89431771,0.00010989,2]
[334383456,1723017032881,-500.0,0.00010989,2]
[334383458,1723017032890,-500.0,0.00010989,2]
[334383460,1723017032901,-39324.60083295,0.0001099,2]
[334383462,1723017032912,-6846.24438432,0.0001099,2]
[334383464,1723017032926,-478.59396333,0.0001099,2]
[334383466,1723017032938,-1836.39289519,0.0001099,2]
[334383469,1723017032951,-1079.82897878,0.0001099,2]
[334383471,1723017032965,-479.84771151,0.0001099,2]
[334383473,1723017032976,-5801.46363943,0.0001099,2]
[334383474,1723017032987,-8678.22559473,0.0001099,2]
[334383530,1723017038045,-200.0,0.00010973,2]
[334383533,1723017038055,-467.57069182,0.00010989,2]
[334383542,1723017038099,-950.00930818,0.00010989,2]
[334383545,1723017038111,-91.24069182,0.00010989,2]
[334383549,1723017038152,-78.52140971,0.00010989,2]
[334383550,1723017038162,-421.47859029,0.0001099,2]
[334383551,1723017038260,-3633.17935124,0.0001099,2]
[334383552,1723017038314,-168945.04631567,0.0001099,2]
[334383553,1723017038326,-315.8864208,0.0001099,2]
[334383554,1723017038424,-5224.9197,0.0001099,2]
[334383678,1723017040469,-890.90712876,0.0001099,2]
[334383679,1723017040483,-354.16960267,0.0001099,2]
[334383680,1723017040497,-250.13277065,0.0001099,2]
[334383681,1723017040508,-263.9482,0.0001099,2]
[334383682,1723017040569,-5175.13391968,0.0001099,2]
[334383683,1723017040579,-157.02958686,0.0001099,2]
[334383684,1723017040589,-151.36,0.0001099,2]
[334383685,1723017040598,-151.36,0.0001099,2]
[334383686,1723017040608,-151.36,0.0001099,2]
[334383687,1723017040617,-151.36,0.0001099,2]
[334383688,1723017040627,-151.36,0.0001099,2]
[334383689,1723017040636,-151.36,0.0001099,2]
[334383690,1723017040648,-151.36,0.0001099,2]
[334383691,1723017040659,-151.36,0.0001099,2]
[334383692,1723017040668,-151.36,0.0001099,2]
[334383693,1723017040679,-151.36,0.0001099,2]
[334383694,1723017040688,-151.36,0.0001099,2]
[334383695,1723017040697,-151.36,0.0001099,2]
[334383696,1723017040707,-151.36,0.0001099,2]
[334383697,1723017040716,-500.0,0.00010997,2]
[334383698,1723017040726,-500.0,0.00010997,2]
[334383699,1723017040737,-625.0,0.00010997,2]
[334383700,1723017040747,-500.0,0.00010997,2]
[334383701,1723017040756,-500.0,0.00010997,2]
[334383702,1723017040766,-500.0,0.00010997,2]
[334383703,1723017040776,-1779.28406865,0.00010997,2]
[334383704,1723017040786,-1302.86889251,0.00010999,2]
[334383705,1723017040797,-500.0,0.00010999,2]
[334383706,1723017040806,-500.0,0.00010999,2]
[334383707,1723017040815,-500.0,0.00010999,2]
[334383708,1723017040824,-500.0,0.00010999,2]
[334383709,1723017040833,-500.0,0.00010999,2]
[334383710,1723017040843,-449.71,0.00010999,2]
[334383711,1723017040852,-500.0,0.00010999,2]
[334383712,1723017040863,-500.0,0.00010999,2]
[334383713,1723017040872,-500.0,0.00010999,2]
[334383714,1723017040881,-500.0,0.00010999,2]
[334383715,1723017040890,-500.0,0.00010999,2]
[334383716,1723017040901,-644.14,0.00010999,2]
[334383717,1723017040911,-625.0,0.00010999,2]
[334383718,1723017040921,-625.0,0.00010999,2]
[334383719,1723017040931,-625.0,0.00010999,2]
[334383720,1723017040941,-625.0,0.00010999,2]
[334383721,1723017040953,-625.0,0.00010999,2]
[334383722,1723017040963,-625.0,0.00010999,2]
[334383723,1723017040971,-625.0,0.00010999,2]
[334383724,1723017040981,-625.0,0.00010999,2]
[334383725,1723017040990,-625.0,0.00010999,2]
[334383726,1723017040999,-625.0,0.00010999,2]
[334383727,1723017041008,-625.0,0.00010999,2]
[334383728,1723017041018,-625.0,0.00010999,2]
[334383729,1723017041033,-625.0,0.00010999,2]
[334383730,1723017041043,-625.0,0.00010999,2]
[334383731,1723017041052,-625.0,0.00010999,2]
[334383732,1723017041061,-625.0,0.00010999,2]
[334383733,1723017041072,-517.29857843,0.00010999,2]
[334383734,1723017041084,-107.70142157,0.00010999,2]
[334383735,1723017041094,-517.68648646,0.00010999,2]
[334383736,1723017041107,-107.31351354,0.00010999,2]
[334383737,1723017041119,-178.27148646,0.00010999,2]
[334383738,1723017041131,-446.72851354,0.00010999,2]
[334383739,1723017041140,-140.47276167,0.00010999,2]
[334383740,1723017041151,-484.52723833,0.00010999,2]
[334383741,1723017041160,-625.0,0.00010999,2]
[334383742,1723017041170,-625.0,0.00010999,2]
[334383743,1723017041180,-500.0,0.00010999,2]
[334383744,1723017041190,-500.0,0.00010999,2]
[334383745,1723017041201,-500.0,0.00010999,2]
[334383746,1723017041211,-151.02,0.00010999,2]
[334383747,1723017041221,-500.0,0.00010999,2]
[334383748,1723017041229,-500.0,0.00010999,2]
[334383749,1723017041238,-584.40371179,0.00010999,2]
[334383750,1723017041247,-500.0,0.00010999,2]
[334383751,1723017041258,-500.0,0.00010999,2]
[334383752,1723017041267,-500.0,0.00010999,2]
[334383753,1723017041278,-530.67,0.00010999,2]
[334383754,1723017041288,-500.0,0.00010999,2]
[334383755,1723017041298,-446.0593827,0.00010999,2]
[334383756,1723017041310,-53.9406173,0.00010999,2]
[334383757,1723017041319,-500.0,0.00010999,2]
[334383758,1723017041328,-500.0,0.00010999,2]
[334383759,1723017041482,-500.0,0.00010999,2]
[334383760,1723017041491,-500.0,0.00010999,2]
[334383761,1723017041501,-500.0,0.00010999,2]
[334383762,1723017041509,-409.40560617,0.00010999,2]
[334383763,1723017041518,-1417.58,0.00010999,2]
[334383764,1723017041527,-1417.58,0.00010999,2]
[334383765,1723017041536,-1417.58,0.00010999,2]
[334383766,1723017041546,-1417.58,0.00010999,2]
[334383767,1723017041555,-1417.58,0.00010999,2]
[334383768,1723017041564,-1417.58,0.00010999,2]
[334383769,1723017041573,-1417.58,0.00010999,2]
[334383770,1723017041583,-1417.58,0.00010999,2]
[334383771,1723017041592,-1417.58,0.00010999,2]
[334383772,1723017041602,-1417.58,0.00010999,2]
[334383773,1723017041611,-1417.58,0.00010999,2]
[334383774,1723017041620,-1417.58,0.00010999,2]
[334383775,1723017041630,-1417.58,0.00010999,2]
[334383776,1723017041639,-1417.58,0.00010999,2]
[334383777,1723017041648,-1417.58,0.00010999,2]
[334383778,1723017041658,-1417.58,0.00010999,2]
[334383779,1723017041667,-500.0,0.00010999,2]
[334383780,1723017041676,-500.0,0.00010999,2]
[334383781,1723017041685,-628.72593198,0.00010999,2]
[334383782,1723017041694,-970.0,0.00011,2]
[334383783,1723017041703,-18408.89476329,0.00011,2]
[334383784,1723017041716,-270.59,0.00011,2]
[334383785,1723017041727,-383.0020099,0.00011,2]
[334383786,1723017041737,-57578.13239955,0.00011,2]
[334383787,1723017041746,-622.0,0.00011,2]
[334383788,1723017041756,-1925.0,0.00011,2]
[334383789,1723017041765,-1256.0,0.00011,2]
[334383790,1723017041775,-1583.0,0.00011,2]
[334383791,1723017041784,-555.0,0.00011,2]
[334383792,1723017041793,-150.0,0.00011,2]
[334383793,1723017041802,-810.0,0.00011,2]
[334383794,1723017041811,-446.0,0.00011,2]
[334383795,1723017041821,-1344.0,0.00011,2]
[334383796,1723017041830,-551.0,0.00011,2]
[334383797,1723017041839,-1894.0,0.00011,2]
[334383798,1723017041848,-150.0,0.00011,2]